Cogmind - Beta 16 @@@ ROGUE MODE // 2026.01.02 @ 17:15:36 Player: Drago Result: Destroyed by Executioner with Helical Railgun Performance ------------- Evolutions (8) 4000 Regions Visited (18) 3600 Robots Destroyed (186) 930 Value Destroyed (9176) 9176 Prototype IDs (114) 2280 Alien Tech Used (6) 1200 Bonus (10859) 10859 TOTAL SCORE: 32045 Bonus ------- High Alert Combat Kills 3778 Follower Combat Kills 3655 Registered with UFD 300 Met Optimus in HQ 500 Met Imprinter 300 Met Sigix 2000 Met Optimus at Protoforge 1000 Friendly Fire -674 Cogmind --------- Core Integrity 0/1450 Matter 259/300 Energy 198/200 System Corruption 10% Temperature Cool (-196) Movement Flying (31) Location -2/Protoforge Parts ------- > --- POWER (2) -------- Micro Antimatter Reactor Micro Antimatter Reactor > --- PROPULSION (8) --- Impulse Thruster Array Impulse Thruster Array Impulse Thruster Array Experimental Surge Thruster > --- UTILITY (11) ----- Advanced Cryofiber Web Experimental Optical Array Partition Strike Chip Experimental Targeting Computer Experimental Targeting Computer Experimental Core Analyzer Experimental Core Analyzer Experimental Armor Integrity Analyzer Advanced Weapon Cycler Centrium Light Armor Plating > --- WEAPON (2) ------- Helical Railgun Helical Railgun > --- INVENTORY (5) ---- Helical Railgun Peak State ------------ > --- POWER ------------ Improved Quantum Reactor Matter Drive > --- PROPULSION ------- Q-thruster Q-thruster Q-thruster Impulse Thruster Array Improved Q-thruster Experimental Surge Thruster Experimental Surge Thruster > --- UTILITY ---------- 0bPrime Scrap Suit Experimental Cooling System Medium Storage Unit Experimental Optical Array Experimental Targeting Computer Experimental Target Analyzer Experimental Core Analyzer Experimental Core Analyzer Experimental Armor Integrity Analyzer Centrium Medium Armor Plating > --- WEAPON ----------- Advanced KE Penetrator Concept XC Strikerail > --- INVENTORY -------- UFD Drillbomb [Rating: 214] Favorites ----------- Power Improved Ion Engine Engine Improved Ion Engine Power Core Micro Nuclear Core Reactor Micro Antimatter Reactor Propulsion Improved VTOL Module Treads Light Treads Leg Thunder Leg Wheel Armored Wheel Hover Unit Antigrav System Flight Unit Improved VTOL Module Utility Medium Storage Unit Device Seismic Detector Storage Medium Storage Unit Processor Enhanced Optical Array Hackware Makeshift Hacking Suite Protection Light Armor Plating Weapon Improved Assault Rifle Energy Gun Small Laser Energy Cannon Phase Cannon Ballistic Gun Improved Assault Rifle Launcher Mini Grenade Launcher Special Weapon RU-N14's Throwing Claymores Impact Weapon Makeshift Hammer Slashing Weapon Sigix Broadsword Piercing Weapon CR-A16's Pointy Stick Special Melee Weapon Advanced Datajack Build | -11 -10 -10 -9 -9 -9 -9 -6 -6 -6 -6 -5 -5 -4 -4 -3 -2 -2 -2 ------- Run | Yrd Mat Min Mat Sto Rec Scr Fac Low Low Zio Pro Fac Fac Ext Res Res Qua Frg Slots Evolved 16 | . . . 2 . . . 6 . . . . 2 2 . 2 2 . . Power 1 | . . . . . . . . . . . . . 1 . . . . . Propulsion 6 | . . . 1 . . . 2 . . . . 1 . . 1 1 . . Utility 9 | . . . 1 . . . 4 . . . . 1 1 . 1 1 . . Weapon . | . . . . . . . . . . . . . . . . . . . Parts Attached 214 | 4 6 2 9 10 1 5 18 2 . 1 1 14 17 22 9 17 12 64 Power 28 | . 1 . . 1 . 1 3 . . . . 1 1 6 1 4 2 7 Engine 7 | . 1 . . 1 . 1 2 . . . . . 1 . . . . 1 Core 6 | . . . . . . . 1 . . . . 1 . 4 . . . . Reactor 15 | . . . . . . . . . . . . . . 2 1 4 2 6 Propulsion 69 | 1 3 . 3 4 . 2 2 1 . . . 4 9 11 5 7 3 14 Treads 7 | 1 2 . 1 3 . . . . . . . . . . . . . . Leg 8 | . . . . . . . . . . . . . 5 2 . . . 1 Wheel 6 | . 1 . . 1 . . . . . . . 2 . 2 . . . . Hover 2 | . . . . . . . . . . . . 1 1 . . . . . Flight 46 | . . . 2 . . 2 2 1 . . . 1 3 7 5 7 3 13 Utility 77 | 1 2 . 3 2 1 2 9 1 . . 1 6 5 3 3 4 5 29 Device 33 | 1 1 . . . . . 5 . . . . 3 2 3 1 3 1 13 Storage 3 | . 1 . 1 . . 1 . . . . . . . . . . . . Processor 19 | . . . . . . 1 2 . . . . 1 . . 1 . 3 11 Hackware 12 | . . . . . . . 2 1 . . 1 . 3 . 1 1 1 2 Protection 10 | . . . 2 2 1 . . . . . . 2 . . . . . 3 Artifact . | . . . . . . . . . . . . . . . . . . . Weapon 40 | 2 . 2 3 3 . . 4 . . 1 . 3 2 2 . 2 2 14 Energy Gun 3 | 1 . 1 . . . . . . . . . . . . . . . 1 Energy Cannon 6 | . . . . . . . 3 . . . . . 2 . . . 1 . Ballistic Gun 22 | 1 . . 3 2 . . 1 . . . . . . 1 . 2 . 12 Ballistic Cannon . | . . . . . . . . . . . . . . . . . . . Launcher 2 | . . . . 1 . . . . . . . 1 . . . . . . Special Weapon 2 | . . . . . . . . . . 1 . 1 . . . . . . Impact Weapon 1 | . . 1 . . . . . . . . . . . . . . . . Slashing Weapon 2 | . . . . . . . . . . . . . . . . . 1 1 Piercing Weapon 1 | . . . . . . . . . . . . 1 . . . . . . Special Melee Weapon 1 | . . . . . . . . . . . . . . 1 . . . . Unidentified Prototypes 34 | . . . 3 . . . 2 . . 1 . . . . . 2 9 17 Corrupted Parts 1 | . . . . . . . . . . . . . . 1 . . . . System Corruption 5 | . . . . . . . . . . . . . . 5 . . . . Parts Lost 73 | . . . . . . . . . 2 . . 10 . 10 11 3 6 31 Power 9 | . . . . . . . . . . . . 2 . 1 2 1 . 3 Propulsion 34 | . . . . . . . . . 1 . . 6 . 6 5 1 2 13 Utility 20 | . . . . . . . . . 1 . . 2 . 2 2 . 4 9 Weapon 10 | . . . . . . . . . . . . . . 1 2 1 . 6 Highest Loss Streak 18 | . . . . . . . . . 2 . . 4 . 5 9 2 4 18 To Critical Strikes 2 | . . . . . . . . . . . . . . . . . . 2 Average Backups 9 | 2 4 6 7 15 15 14 7 8 5 7 8 8 6 6 7 7 9 1 Power . | . . . . 1 1 . . 1 1 1 1 . . . 1 . 2 . Propulsion 2 | 1 1 2 2 6 6 5 . 1 . . . . . . 1 4 3 . Utility 3 | . 1 3 2 4 5 4 4 5 4 4 4 4 4 3 2 2 2 . Weapon 1 | . . 1 2 3 3 2 1 1 . 2 3 2 1 1 1 . . . Tool/Special . | . . . . . . . . . . . . . . . . . . . Unused Backups 20 | . . 1 3 3 . 3 1 . . 2 . 2 . . . 1 . 4 Power 2 | . . . . . . . . . . . . . . . . . . 2 Propulsion 3 | . . . 1 1 . 1 . . . . . . . . . . . . Utility 9 | . . 1 . 1 . 2 1 . . 1 . 2 . . . . . 1 Weapon 6 | . . . 2 1 . . . . . 1 . . . . . 1 . 1 Tool/Special . | . . . . . . . . . . . . . . . . . . . Average Slot Usage (%) 90 | . 77 100 99 99 100 96 83 93 98 97 100 87 84 78 84 88 83 84 Engine 4 | . 5 14 11 10 11 9 . . . . . . 1 . . . . . Core 1 | . . . . . . . 4 6 6 6 6 4 . 1 7 . . . Reactor 1 | . . . . . . . . . . . . . . 3 . 7 8 7 Treads 8 | . 18 14 21 22 22 19 . . . . . . . . . . . . Wheel 5 | . 5 14 11 11 11 9 . . . . . 2 4 1 . . . . Flight 14 | . . . . . . 4 32 33 32 33 33 20 8 17 24 25 25 26 Device 9 | . 14 14 11 11 11 11 16 6 5 6 6 10 5 5 7 11 13 9 Storage 7 | . 5 14 11 11 11 11 6 6 6 6 6 5 5 5 4 4 4 3 Processor 7 | . . . . . . . 4 13 13 13 13 10 10 10 9 8 10 23 Hackware 8 | . . . . . . . 6 19 20 20 20 16 20 21 22 22 15 2 Protection 4 | . . . 10 11 11 10 2 . . . . . 3 . . . . 3 Energy Cannon 1 | . . . . . . . 2 6 6 6 6 4 4 3 . 3 . . Ballistic Gun 9 | . 14 2 17 20 22 20 4 . . . . . . 1 1 3 1 6 Peak Build Rating 214 | 6 9 11 16 20 20 26 60 61 62 68 66 82 90 98 112 159 194 214 Average Rating 66 | 3 7 10 13 18 20 20 49 60 61 62 65 71 80 81 96 147 176 185 On Entrance 56 | . 6 8 11 14 20 20 20 60 61 62 64 66 54 90 80 96 157 190 Avg Prop Armor Cover (%) 14 | 22 18 13 14 15 15 15 1 . . . . 8 20 8 . . . 14 Naked Turns . | . . . . . . . . . . . . . . . . . . . Heaviest Build 65 | 3 13 17 34 37 37 37 30 26 26 26 26 37 39 52 32 59 61 65 Greatest Support 92 | 20 10 10 40 12 12 15 27 30 30 27 27 37 92 38 58 72 72 72 Greatest Overweight (x) 5 | . 1 1 3 3 3 3 1 . . . . 3 2 5 . . . 2 Average Overweight (x) . | . . 1 1 2 3 2 . . . . . . . . . . . . Largest Inventory Capacity 15 | 5 8 8 15 15 15 15 10 10 10 10 10 10 10 10 10 10 10 10 Average Capacity 11 | 5 6 8 10 15 15 14 10 10 10 10 10 10 10 10 10 10 10 8 Most Carried 15 | 4 8 8 15 15 15 15 10 10 10 10 10 10 10 10 10 10 10 10 Average Carried 10 | 2 4 7 9 14 15 14 9 9 7 9 10 9 8 7 8 7 9 5 Final Capacity 15 | 5 8 8 15 15 15 10 10 10 10 10 10 10 10 10 10 10 10 5 Final Carried 15 | 4 8 8 15 15 15 10 10 10 7 10 10 8 9 10 8 10 9 1 Scrap Suit Usage (%) 6 | . . . . . . . . . . . . . . . . . . 59 Parts Cannibalized 16 | . . . . . . . . . . . . . . . . . . 16 Class Distribution -------------------- 25% | Commander-Mutant 16% | Mutant 15% | Hacker-Scout 8% | Hacker-Mutant 8% | Scavenger-Sprinter 6% | Hacker-Sprinter 6% | Wizard-Sprinter 4% | Hacker-Skirmisher Dominant Class ---------------- Mutant | -10/Materials Mutant | -10/Mines Mutant | -9/Materials Mutant | -9/Storage Commander-Mutant | -9/Recycling Commander-Mutant | -9/Scraptown Commander-Sprinter | -6/Factory Hacker-Scout | -6/Lower Caves Hacker-Scout | -6/Lower Caves Hacker-Scout | -6/Zion Hacker-Scout | -5/Proximity Caves Hacker-Scout | -5/Factory Hacker-Mutant | -4/Factory Hacker-Mutant | -4/Extension Wizard-Sprinter | -3/Research Wizard-Sprinter | -2/Research Hacker-Sprinter | -2/Quarantine Scavenger-Sprinter | -2/Protoforge Resources | -11 -10 -10 -9 -9 -9 -9 -6 -6 -6 -6 -5 -5 -4 -4 -3 -2 -2 -2 ----------- Run | Yrd Mat Min Mat Sto Rec Scr Fac Low Low Zio Pro Fac Fac Ext Res Res Qua Frg Matter Collected 6350 | 219 85 33 481 404 46 76 119 145 55 . 50 214 109 1057 55 350 112 2740 Remotely . | . . . . . . . . . . . . . . . . . . . Salvage Created 9704 | 11 247 . 801 619 78 . 72 55 129 . . 1194 109 1076 58 95 112 5048 Parts 470 | 5 14 . 40 37 5 . 2 1 5 . 3 41 3 31 7 7 6 263 Haulers Intercepted 5 | . . . 3 1 . . . . . . . . . . . . . 1 Recyclers Shooed 5 | . . . 2 1 . . . . . . . 1 . . . 1 . . Parts Field Recycled . | . . . . . . . . . . . . . . . . . . . Retrieved Matter . | . . . . . . . . . . . . . . . . . . . Parts Self-Destructed 18 | . . . . . . . . 10 5 . 3 . . . . . . . Prevented . | . . . . . . . . . . . . . . . . . . . Parts Restored . | . . . . . . . . . . . . . . . . . . . Kills | -11 -10 -10 -9 -9 -9 -9 -6 -6 -6 -6 -5 -5 -4 -4 -3 -2 -2 -2 ------- Run | Yrd Mat Min Mat Sto Rec Scr Fac Low Low Zio Pro Fac Fac Ext Res Res Qua Frg Combat Hostiles Destroyed 125 | . 6 . 10 13 1 . . 1 6 . 2 24 . 5 . 1 . 56 Melee 7 | . . . 4 . . . . . . . . . . 2 . . . 1 Guns 83 | . 6 . 6 13 1 . . . . . . . . 2 . . . 55 Cannons 6 | . . . . . . . . 1 3 . . 1 . . . 1 . . AOE 28 | . . . . . . . . . 3 . 2 22 . 1 . . . . Classes Destroyed 23 | 1 1 . 4 3 . . 1 . . . 1 2 . 1 . . 1 8 Worker 10 | . . . . . . . 1 . . . . 6 . 3 . . . . Builder 4 | . . . 1 . 1 . . . . . . . . 1 . 1 . . Tunneler 2 | 1 . . . . . . . . . . . . . 1 . . . . Hauler 5 | . . . 3 1 . . . . . . . . . . . . . 1 Recycler 12 | . . . 2 . . . . . . . . 4 1 5 . . . . Mechanic 5 | . . . . . . . . . . . . . . . . . . 5 Operator 5 | . . . . 1 . . . . . . . . . 1 1 . . 2 Drone 7 | . . . . . . . . . . . 2 . . . . . . 5 Watcher 13 | . . . . 2 . . . . . . . 4 . 2 1 . 1 3 Swarmer 20 | . . . . 3 . . . . 6 . . 5 . 3 . . . 3 Grunt 41 | . 6 . 7 4 . . 1 1 . . . 13 . 2 . . . 7 Brawler 1 | . . . . . . . . . . . . . . . . . . 1 Duelist 2 | . . . . . . . . . . . . . . . . . . 2 Protector 1 | . . . . . . . . . . . . . . . . . . 1 Researcher 1 | . . . . . . . . . . . . . . . . . 1 . Sentry 12 | . . . 3 6 1 . . . . . . . . 1 . . . 1 Hunter 9 | . . . . . . . . . . . . 1 . . . 1 . 7 Programmer 9 | . . . . . . . . . . . . 5 . . . . . 4 Hotshot 7 | . . . . . . . . . . . . . . . . . . 7 Decapitator 1 | . . . . . . . . . . . . . . . . . . 1 Striker 9 | . . . . . . . . . . . . . . . . . . 9 Executioner 7 | . . . . . . . . . . . . . . . . . . 7 Alpha 7 1 | . . . . . . . . . . . . . . . . . . 1 Scrapoid 2 | . . . . . . . . . . . . . . . . . . 2 Butcher 1 | . . . . . . . . . . . . . . 1 . . . . Best Kill Streak 16 | 1 3 . 6 3 1 . 1 1 6 . 2 16 1 8 1 2 1 14 Combat Bots Only 14 | . 3 . 5 3 1 . . 1 6 . 2 14 . 1 . 1 . 12 Max Kills in Single Turn 5 | 1 1 . 1 2 1 . 2 1 2 . 1 5 1 4 1 1 1 2 Gunslinging 1 | . . . . 1 . . . . . . . . . . . . . 1 Exploded 5 | . . . . . . . . . 2 . 1 5 . 1 . . . . Melee 1 | . . . 1 . . . . . . . . . . 1 . . . 1 Uniques/NPCs Destroyed . | . . . . . . . . . . . . . . . . . . . Combat | -11 -10 -10 -9 -9 -9 -9 -6 -6 -6 -6 -5 -5 -4 -4 -3 -2 -2 -2 -------- Run | Yrd Mat Min Mat Sto Rec Scr Fac Low Low Zio Pro Fac Fac Ext Res Res Qua Frg Hostile Shots Fired 972 | . 32 . 56 45 8 . 2 13 25 . 4 90 2 98 85 85 83 344 Missed 423 | . 10 . 20 10 3 . 1 10 4 . 3 36 1 27 44 58 38 158 Hits 549 | . 22 . 36 35 5 . 1 3 21 . 1 54 1 71 41 27 45 186 Melee 4 | . . . . . . . . . . . . . . . . . . 4 Projectile 545 | . 22 . 36 35 5 . 1 3 21 . 1 54 1 71 41 27 45 182 AOE 1 | . . . . . . . . . . . . . . . . . . 1 Critical Strikes 29 | . . . 2 1 . . . . 1 . . 8 . 2 2 2 4 7 Damage Taken 13457 | . 299 . 485 446 71 . 23 29 316 . 26 1636 18 1336 916 778 951 6127 Core 2273 | . 72 . 102 85 . . . . 31 . . 212 18 411 132 92 72 1046 Absorbed by Shields 99 | . . . . . . . . . . . . . . 99 . . . . Regen/Repaired (Parts) 1073 | . . . . . . . . . . 243 . . . . . . 339 491 Core Remaining (%) 78 | 100 . 71 . . . 53 . . . . 96 78 . 62 89 . . . Volleys Fired 588 | 2 28 . 39 45 7 . 14 9 12 1 2 85 14 80 . 35 12 203 Largest 2 | 2 2 . 2 2 2 . 2 1 1 1 1 2 1 2 . 2 1 2 Hottest 300 | 60 60 . 46 46 46 . 90 85 85 85 30 85 105 140 . 140 300 76 Shots Fired 905 | 4 55 . 76 89 14 . 16 9 12 1 2 89 14 87 . 43 12 382 Gun 695 | 4 55 . 76 88 14 . 4 . . . . . . 36 . 25 11 382 Cannon 171 | . . . . . . . 12 9 10 1 . 67 14 39 . 18 1 . Launcher 30 | . . . . 1 . . . . 2 . 2 13 . 12 . . . . Special 9 | . . . . . . . . . . . . 9 . . . . . . Kinetic 666 | 2 28 . 76 88 14 . 4 . . . . . . 36 . 25 11 382 Thermal 200 | 2 27 . . . . . 12 9 10 1 . 67 14 39 . 18 1 . Explosive 39 | . . . . 1 . . . . 2 . 2 22 . 12 . . . . Electromagnetic . | . . . . . . . . . . . . . . . . . . . Robot Hit Streak 19 | 2 11 . 8 11 12 . 4 2 9 . . 14 2 3 . 3 . 19 Robot Miss Streak 5 | 1 3 . 3 4 2 . 1 2 . . . 2 1 5 . 3 . 4 Penetration Max 2 | . . . . . . . . . . . . . . 2 . 2 . 2 Secondary Targets 12 | . 1 . 2 2 . . . . . . . . . . . . . 7 Max Gunslinging Chain 1 | . 1 . 1 1 . . . . . . . . . . . . . 1 Shots Hit Robots 574 | 2 33 . 63 54 11 . 2 3 8 . . 43 3 60 4 16 2 270 Core Hits 377 | 1 14 . 25 29 5 . 2 2 7 . 2 73 3 40 2 9 2 161 Critical Kills 17 | . . . 2 . . . . . . . . . . . . . . 15 Critical Parts Destroyed 22 | . . . 1 1 . . . . . . . . . . . 2 . 18 Critical Strikes 50 | . . . 3 1 . . . . . . . 5 . 2 1 2 . 36 Destroy 38 | . . . . 1 . . . . . . . . . . . 2 . 35 Smash 3 | . . . 3 . . . . . . . . . . . . . . . Sever 6 | . . . . . . . . . . . . 5 . . . . . 1 Impale 3 | . . . . . . . . . . . . . . 2 1 . . . Melee Attacks 106 | . . . 18 9 . . . . . . . 1 3 41 16 . 9 9 Impact 27 | . . . 18 9 . . . . . . . . . . . . . . Slashing 18 | . . . . . . . . . . . . . . . . . 9 9 Piercing 46 | . . . . . . . . . . . . 1 3 26 16 . . . Sneak Attacks 24 | . . . 1 . . . . . . . . 1 . 21 . . 1 . Combat Hostiles 1 | . . . . . . . . . . . . . . 1 . . . . Follow-up Attacks . | . . . . . . . . . . . . . . . . . . . Damage Inflicted 25342 | 19 303 . 1187 849 184 . 54 123 393 . 121 5542 131 3698 166 501 272 11799 Guns 14050 | 19 303 . 773 849 184 . 54 . . . . . . 690 . 319 . 10859 Cannons 2127 | . . . . . . . . 123 232 . . 915 131 544 . 182 . . Explosions 5967 | . . . . . . . . . 161 . 121 4249 . 1436 . . . . Melee 2888 | . . . 414 . . . . . . . . 68 . 1028 166 . 272 940 Ramming . | . . . . . . . . . . . . . . . . . . . Kinetic 13865 | 9 128 . 773 849 184 . 54 . . . . . . 690 . 319 . 10859 Thermal 2426 | 10 175 . . . . . . 123 232 . . 915 131 658 . 182 . . Explosive 5790 | . . . . . . . . . 161 . 121 4186 . 1322 . . . . Electromagnetic 63 | . . . . . . . . . . . . 63 . . . . . . Impact 414 | . . . 414 . . . . . . . . . . . . . . . Slashing 1522 | . . . . . . . . . . . . 310 . . . . 272 940 Piercing 1262 | . . . . . . . . . . . . 68 . 1028 166 . . . Highest Corruption 11 | . . . . . . . . . . . . 11 . 7 2 5 5 10 Average Corruption 6 | . . . . . . . . . . . . 7 . 4 1 4 5 8 Corruption Purged . | . . . . . . . . . . . . . . . . . . . Corruption Blocked . | . . . . . . . . . . . . . . . . . . . Effects 108 | . . . . . . . . . . . . 24 . 23 1 7 7 46 Message Errors 18 | . . . . . . . . . . . . 5 . 2 . 2 2 7 Matter Fused 29 | . . . . . . . . . . . . 3 . 6 . 3 2 15 Heat Flow Errors 18 | . . . . . . . . . . . . 7 . 2 . 1 1 7 Energy Discharges 14 | . . . . . . . . . . . . 4 . 4 . . 1 5 Parts Rejected 5 | . . . . . . . . . . . . . . . 1 1 . 3 Data Loss (minor) 12 | . . . . . . . . . . . . 4 . 4 . . 1 3 Data Loss (major) 2 | . . . . . . . . . . . . . . 1 . . . 1 Misfires 5 | . . . . . . . . . . . . 1 . 4 . . . . Misdirections 2 | . . . . . . . . . . . . . . . . . . 2 Weapon Failures 3 | . . . . . . . . . . . . . . . . . . 3 Overload Shots . | . . . . . . . . . . . . . . . . . . . Overflow Damage 577 | . . . 113 . . . . 6 14 . 10 186 . 189 . 6 . 53 Projectiles 80 | . . . . . . . . 6 14 . . 54 . . . 6 . . Explosions 229 | . . . . . . . . . . . 10 132 . 87 . . . . Melee 268 | . . . 113 . . . . . . . . . . 102 . . . 53 Knockbacks . | . . . . . . . . . . . . . . . . . . . Impact . | . . . . . . . . . . . . . . . . . . . Kinetic . | . . . . . . . . . . . . . . . . . . . Secondary . | . . . . . . . . . . . . . . . . . . . Self-Inflicted Damage 100 | . . . . . . . . . . . . 100 . . . . . . Shots 2 | . . . . . . . . . . . . 2 . . . . . . Rammed . | . . . . . . . . . . . . . . . . . . . Targets Rammed . | . . . . . . . . . . . . . . . . . . . Kicked . | . . . . . . . . . . . . . . . . . . . Crushed . | . . . . . . . . . . . . . . . . . . . Highest Temperature 324 | 20 41 . 14 8 5 . 144 146 186 46 1 254 92 324 16 310 191 172 Average Temperature 69 | 12 15 . 4 2 3 . 31 57 104 18 1 57 36 105 16 97 97 75 Received Heat Transfer 1296 | . 168 . 240 162 18 . . . 30 . . 225 . 81 78 36 . 258 Effects 1 | . . . . . . . . . . . . 1 . . . . . . Interference 1 | . . . . . . . . . . . . 1 . . . . . . Siege Activations . | . . . . . . . . . . . . . . . . . . . Martial Activations . | . . . . . . . . . . . . . . . . . . . Shielding Activations . | . . . . . . . . . . . . . . . . . . . Robots Disrupted 2 | . . . . . . . . . . . . 2 . . . . . . Combat Hostiles 2 | . . . . . . . . . . . . 2 . . . . . . Robots Corrupted . | . . . . . . . . . . . . . . . . . . . Combat Hostiles . | . . . . . . . . . . . . . . . . . . . Parts Fried . | . . . . . . . . . . . . . . . . . . . Impact Corruptions 3 | . . . 3 . . . . . . . . . . . . . . . Robots Melted 1 | . . . . . . . . . . . . 1 . . . . . . Combat Hostiles 1 | . . . . . . . . . . . . 1 . . . . . . Parts Melted 11 | . . . 1 2 . . . . 1 . . 1 1 . . . . 5 Heat Transferred 2750 | 25 400 . . . . . . 148 259 . . 999 148 586 . 185 . . Parts Sabotaged . | . . . . . . . . . . . . . . . . . . . Parts Stolen . | . . . . . . . . . . . . . . . . . . . Parts Stripped . | . . . . . . . . . . . . . . . . . . . Power Chain Reactions . | . . . . . . . . . . . . . . . . . . . Alert | -11 -10 -10 -9 -9 -9 -9 -6 -6 -6 -6 -5 -5 -4 -4 -3 -2 -2 -2 ------- Run | Yrd Mat Min Mat Sto Rec Scr Fac Low Low Zio Pro Fac Fac Ext Res Res Qua Frg Maximum Alert Level 5 | . . . 1 2 . . . . . . . 3 1 3 2 3 2 5 Low Security (%) 65 | 100 100 100 97 68 100 . 100 . . . . 84 75 55 . . 88 12 Level 1 9 | . . . 2 30 . . . . . . . 1 24 4 35 22 . 4 Level 2 12 | . . . . 1 . . . . . . . 9 . 13 64 59 11 27 Level 3 7 | . . . . . . . . . . . . 4 . 27 . 18 . 14 Level 4 3 | . . . . . . . . . . . . . . . . . . 22 Level 5 2 | . . . . . . . . . . . . . . . . . . 17 High Security . | . . . . . . . . . . . . . . . . . . . Max Security . | . . . . . . . . . . . . . . . . . . . Peak Influence 2018 | 5 160 46 294 424 114 . 53 . . . . 715 338 982 644 1045 582 2018 Initial 582 | . . 46 . 46 111 . . . . . . . 338 . 467 299 582 18 Average 292 | 2 87 12 108 177 29 . 4 . . . . 121 91 380 428 554 147 949 Influence Increases 10679 | 5 240 . 572 1005 106 . 120 110 190 . 10 1170 33 1758 686 1382 258 3034 Destroy 0b10 Robot/C 4260 | . 120 . 340 420 60 . . 20 120 . . 480 . 760 180 540 20 1200 Destroy 0b10 Robot/NC 370 | 5 . . 40 20 5 . 5 . . . 10 70 5 100 10 5 5 90 Destroy Leader 760 | . 30 . 100 116 . . . . 10 . . 78 . 86 32 110 2 196 Allied During Kill 1143 | . . . 58 100 18 . 1 . . . . . . 446 9 253 . 258 Successful Hack 288 | . . . 13 41 23 . 62 . . . . 30 2 . 15 18 36 48 Disable Machine 555 | . . . . 30 . . . . . . . 135 . 75 15 . 105 195 Anti-Garrison Action 200 | . . . . 200 . . . . . . . . . . . . . . Destroy Structure 988 | . . . 6 18 . . 7 . . . . 272 26 186 50 171 15 237 Partial Spotted 240 | . . . . 15 . . 45 . . . . 15 . . 30 90 15 30 Lose Combat Pursuer 1875 | . 90 . 15 45 . . . 90 60 . . 90 . 105 345 195 60 780 Influence Decreases 8675 | 5 120 120 462 828 393 . 75 153 142 50 10 479 724 868 1043 878 1262 1063 Entered New Map 1864 | . . 74 . 64 176 . . 18 2 50 . . 353 . 423 234 455 15 Time Decay 3596 | 5 110 46 312 494 217 . 55 135 120 . 10 389 163 508 110 254 150 518 Lost Part 707 | . . . . . . . . . 20 . . 90 . 100 110 30 47 310 Lost Ally 950 | . 10 . . 120 . . 20 . . . . . . 260 100 210 10 220 Purge Threat 1558 | . . . 150 150 . . . . . . . . 208 . 300 150 600 . Squads Dispatched 47 | . 2 . 4 2 . . . . . . . 9 2 3 7 5 3 10 Investigation 21 | . . . 2 2 . . . . . . . 3 . 1 4 3 . 6 Extermination 11 | . . . . . . . . . . . . 3 2 . 1 2 2 1 Reinforcement 14 | . 2 . 2 . . . . . . . . 2 . 2 2 . 1 3 Assault . | . . . . . . . . . . . . . . . . . . . Garrison 1 | . . . . . . . . . . . . 1 . . . . . . Intercept . | . . . . . . . . . . . . . . . . . . . Searches Triggered . | . . . . . . . . . . . . . . . . . . . Unchained Authorized 1 | . . . . . . . . . . . . . . . . . 1 . Construction Impeded 2 | . . . . . . . . . . . . . . 1 1 . . . Haulers Reinforced 1 | . . . . . . . . . . . . 1 . . . . . . Active Scanning Responses . | . . . . . . . . . . . . . . . . . . . Cargo Convoy Interrupts . | . . . . . . . . . . . . . . . . . . . Stealth | -11 -10 -10 -9 -9 -9 -9 -6 -6 -6 -6 -5 -5 -4 -4 -3 -2 -2 -2 --------- Run | Yrd Mat Min Mat Sto Rec Scr Fac Low Low Zio Pro Fac Fac Ext Res Res Qua Frg Distress Signals 19 | . 1 . 2 2 . . . . . . . . . . 5 . 1 8 Communications Jammed 16 | . . . . . . . . . . . . 6 . 10 . . . . Distress Signals 16 | . . . . . . . . . . . . 6 . 10 . . . . Times Spotted 503 | . 21 . 22 24 3 . 5 8 11 . 2 35 5 45 35 45 30 212 Peak Tracking Total 23 | . 6 . 6 4 1 . 5 4 5 . 1 6 3 5 12 10 9 23 Tactical Retreats 53 | . 3 . 1 2 . . . 4 1 . . 4 . 4 5 3 1 25 Traps | -11 -10 -10 -9 -9 -9 -9 -6 -6 -6 -6 -5 -5 -4 -4 -3 -2 -2 -2 ------- Run | Yrd Mat Min Mat Sto Rec Scr Fac Low Low Zio Pro Fac Fac Ext Res Res Qua Frg Traps Triggered 7 | . . . 2 1 . . . . . . . 1 . 2 . 1 . . Indirectly . | . . . . . . . . . . . . . . . . . . . Trap Hack Attempts . | . . . . . . . . . . . . . . . . . . . Triggered . | . . . . . . . . . . . . . . . . . . . Disarmed . | . . . . . . . . . . . . . . . . . . . Reprogrammed 13 | . . . . . . . . . . . . . 3 4 . . 6 . Reused . | . . . . . . . . . . . . . . . . . . . Traps Extracted . | . . . . . . . . . . . . . . . . . . . Installed 5 | . . . . . . . . 5 . . . . . . . . . . Triggered . | . . . . . . . . . . . . . . . . . . . Most Traps Carried 2 | . . 2 2 . . . . . . . . . . . . . . . Machines | -11 -10 -10 -9 -9 -9 -9 -6 -6 -6 -6 -5 -5 -4 -4 -3 -2 -2 -2 ---------- Run | Yrd Mat Min Mat Sto Rec Scr Fac Low Low Zio Pro Fac Fac Ext Res Res Qua Frg Machines Disabled 40 | . . . . 2 . . . . . . . 9 . 7 1 . 8 13 Max in Single Turn 3 | . . . . 1 . . . . . . . 2 . 2 . . 3 1 Garrison Access 4 | . . . . 1 . . . . . . . 2 . . . 1 . . Energy Cycler 2 | . . . . . . . . . . . . . . 2 . . . . Machines Repaired . | . . . . . . . . . . . . . . . . . . . Machines Dismantled . | . . . . . . . . . . . . . . . . . . . Machines Sabotaged . | . . . . . . . . . . . . . . . . . . . Overloaded Fab Kills . | . . . . . . . . . . . . . . . . . . . Hacking | -11 -10 -10 -9 -9 -9 -9 -6 -6 -6 -6 -5 -5 -4 -4 -3 -2 -2 -2 --------- Run | Yrd Mat Min Mat Sto Rec Scr Fac Low Low Zio Pro Fac Fac Ext Res Res Qua Frg Machines Accessed 110 | . 1 . 10 12 7 5 8 3 2 1 . 14 6 3 10 10 10 8 Terminals 63 | . 1 . 7 10 6 . 4 . 1 . . 6 4 3 5 2 10 4 Fabricators 6 | . . . . . . . . . . . . 3 1 . 1 . . 1 Repair Stations 1 | . . . 1 . . . . . . . . . . . . . . . Recycling Units 15 | . . . 1 1 1 . 1 . . . . 2 . . 3 3 . 3 Scanalyzers 9 | . . . 1 . . . 2 . . . . 1 1 . 1 3 . . Garrison Access 6 | . . . . 1 . . 1 . . . . 2 . . . 2 . . Total Hacks 362 | . 3 . 25 36 20 33 24 5 2 7 . 56 31 8 30 19 44 19 Successful 246 | . 1 . 14 21 13 33 14 5 2 7 . 35 21 5 16 10 41 8 Failed 114 | . 2 . 11 15 7 . 10 . . . . 21 10 3 13 8 3 11 Catastrophic 16 | . 1 . . 3 2 . 1 . . . . 2 3 . 2 . 1 1 Database Lockouts 2 | . . . . . . . . . . . . . . . 1 1 . . Manual 133 | . 3 . 9 11 9 . 7 . . 1 . 30 16 3 11 8 15 10 Terminals 232 | . 3 . 19 32 19 . 14 . 1 . . 36 22 8 18 7 44 9 Fabricators 16 | . . . . . . . . . . . . 9 2 . 3 . . 2 Repair Stations 1 | . . . 1 . . . . . . . . . . . . . . . Recycling Units 25 | . . . 2 1 1 . 2 . . . . 4 . . 4 3 . 8 Scanalyzers 31 | . . . 3 . . . 6 . . . . 5 7 . 5 5 . . Garrison Access 11 | . . . . 3 . . 2 . . . . 2 . . . 4 . . Terminal Hacks 167 | . . . 8 15 7 33 7 5 2 7 . 15 11 5 8 2 38 4 Record 38 | . . . . . . 28 1 3 1 . . . . . . . 5 . Part Schematic 7 | . . . . . . . . . . 7 . . . . . . . . Robot Schematic 1 | . . . . 1 . . . . . . . . . . . . . . Robot Analysis 9 | . . . . 1 . 5 . . . . . . . . . . 3 . Prototype ID Bank 10 | . . . 4 1 1 . . . . . . 2 . . . . 2 . Open Door 7 | . . . . 2 . . . 2 1 . . . . 1 . . 1 . Level Access Points 2 | . . . . . . . . . . . . . . . . . 2 . Branch Access Points 4 | . . . . . . . . . . . . 1 . . . 1 2 . Emergency Access Points 8 | . . . . 1 1 . 1 . . . . . . . 2 . 3 . Machine Index 4 | . . . . . . . . . . . . 1 . . 1 . 1 1 Terminal Index 3 | . . . 1 . . . 1 . . . . . 1 . . . . . Recycling Unit Index 1 | . . . . . . . . . . . . . 1 . . . . . Alert Level 11 | . . . 1 1 2 . . . . . . 2 1 1 1 . 2 . Unreport Threat 12 | . . . 1 1 . . . . . . . 1 2 . 2 1 4 . Locate Traps 13 | . . . 1 4 . . 2 . . . . . 2 1 . . 2 1 Reprogram Traps 5 | . . . . . . . . . . . . . 1 1 . . 3 . Dispatch Records 3 | . . . . 1 . . . . . . . . . . . . 2 . Security Status 1 | . . . . . . . . . . . . . . . . . 1 . Surveillance Status 1 | . . . . . . . . . . . . . . . . . 1 . Transport Status 1 | . . . . . . . . . . . . 1 . . . . . . Recall Investigation 2 | . . . . . . . . . . . . 2 . . . . . . Recall Reinforcements 1 | . . . . . . . . . . . . . . . . . 1 . Hauler Manifests 1 | . . . . 1 . . . . . . . . . . . . . . Registered Components 6 | . . . . . 1 . 1 . . . . 1 1 . 1 . 1 . Zone Layout 16 | . . . . 1 2 . 1 . . . . 4 2 1 1 . 2 2 Fabricator Hacks 6 | . . . . . . . . . . . . 4 1 . . . . 1 Network Status 4 | . . . . . . . . . . . . 2 1 . . . . 1 Load Schematic 1 | . . . . . . . . . . . . 1 . . . . . . Build 1 | . . . . . . . . . . . . 1 . . . . . . Repair Station Hacks 1 | . . . 1 . . . . . . . . . . . . . . . Scan Component 1 | . . . 1 . . . . . . . . . . . . . . . Recycling Unit Hacks 6 | . . . 2 1 1 . . . . . . 2 . . . . . . Report Inventory 4 | . . . 1 1 1 . . . . . . 1 . . . . . . Retrieve Components 2 | . . . 1 . . . . . . . . 1 . . . . . . Scanalyzer 22 | . . . 2 . . . 4 . . . . 4 6 . 4 2 . . Insert Component 2 | . . . . . . . . . . . . 2 . . . . . . Analyze 1 | . . . . . . . . . . . . 1 . . . . . . Retrieve Study 19 | . . . 2 . . . 4 . . . . 1 6 . 4 2 . . Garrison Access Hacks 3 | . . . . . . . . . . . . 2 . . . 1 . . Seal Access 3 | . . . . . . . . . . . . 2 . . . 1 . . Unauthorized Hacks 41 | . 1 . 1 5 5 . 3 . . . . 8 3 . 4 5 3 3 Terminals 26 | . 1 . 1 4 5 . 3 . . . . 4 2 . 1 2 3 . Track 1 | . . . . . 1 . . . . . . . . . . . . . Assimilate 4 | . 1 . . . . . . . . . . . 1 . . 1 1 . Botnet 16 | . . . 1 3 3 . 2 . . . . 3 1 . 1 1 1 . Operators 5 | . . . . 1 1 . 1 . . . . 1 . . . . 1 . Fabricators 3 | . . . . . . . . . . . . 2 1 . . . . . Fabnet 3 | . . . . . . . . . . . . 2 1 . . . . . Repair Stations . | . . . . . . . . . . . . . . . . . . . Recycling Units 11 | . . . . . . . . . . . . 2 . . 3 3 . 3 Fedlink 6 | . . . . . . . . . . . . 2 . . 2 1 . 1 Scrapoids 5 | . . . . . . . . . . . . . . . 1 2 . 2 Scanalyzers . | . . . . . . . . . . . . . . . . . . . Garrison Access 1 | . . . . 1 . . . . . . . . . . . . . . Jam 1 | . . . . 1 . . . . . . . . . . . . . . Data Cores Recovered 4 | . . . . 1 . . . . . . . . . . 1 . . 2 Used 3 | . . . . 1 . . . . . . . . . . . . . 2 Hacking Detections 76 | . 1 . 8 12 6 . 8 . . . . 9 5 3 7 4 7 6 Full Trace Events 7 | . . . 1 1 1 . . . . . . 1 . . 1 . . 2 Feedback Events 1 | . . . . . . . . . . . . . . . . . . 1 Corruption 1 | . . . . . . . . . . . . . . . . . . 1 Feedback Blocked 1 | . . . . . . . . . . . . . . . . . . 1 Robot Schematics Acquired 5 | . . . . 1 . . . . . 4 . . . . . . . . Robots Built . | . . . . . . . . . . . . . . . . . . . Authchips . | . . . . . . . . . . . . . . . . . . . Time . | . . . . . . . . . . . . . . . . . . . Total Robot Build Rating . | . . . . . . . . . . . . . . . . . . . Part Schematics Acquired 25 | . . . . . . . . . . 21 . 1 . . . . 3 . Parts Built 1 | . . . . . . . . . . . . 1 . . . . . . Authchips . | . . . . . . . . . . . . . . . . . . . Time 106 | . . . . . . . . . . . . 106 . . . . . . Total Part Build Rating 6 | . . . . . . . . . . . . 6 . . . . . . Part Studies Acquired 19 | . . . 2 . . . 4 . . . . 1 6 . 4 2 . . Parts Repaired . | . . . . . . . . . . . . . . . . . . . Time . | . . . . . . . . . . . . . . . . . . . Parts Recycled . | . . . . . . . . . . . . . . . . . . . Recycled Matter . | . . . . . . . . . . . . . . . . . . . Retrieved Matter . | . . . . . . . . . . . . . . . . . . . Retrieved Components 5 | . . . 3 . . . . . . . . 2 . . . . . . Parts Scanalyzed 1 | . . . . . . . . . . . . 1 . . . . . . Part Schematics Acquired 1 | . . . . . . . . . . . . 1 . . . . . . Parts Damaged . | . . . . . . . . . . . . . . . . . . . Bothacking | -11 -10 -10 -9 -9 -9 -9 -6 -6 -6 -6 -5 -5 -4 -4 -3 -2 -2 -2 ------------ Run | Yrd Mat Min Mat Sto Rec Scr Fac Low Low Zio Pro Fac Fac Ext Res Res Qua Frg Used RIF Installer . | . . . . . . . . . . . . . . . . . . . Robots Hacked 7 | . . . . . . . . . . . . . . 2 2 1 . 2 Non-combat . | . . . . . . . . . . . . . . . . . . . Combat 7 | . . . . . . . . . . . . . . 2 2 1 . 2 Robot Hacks Applied 1 | . . . . . . . . . . . . . . 1 . . . . parse_system 1 | . . . . . . . . . . . . . . 1 . . . . Relay Couplers Released 3 | . . . . . . . . . . . . 3 . . . . . . Programmers 3 | . . . . . . . . . . . . 3 . . . . . . Fabnet Peak Effective % 4 | . . . . . . . . . . . . . 3 3 4 1 1 1 Autooverrided 7 | . . . . . . . . . . . . . . 2 2 1 . 2 Robots Rewired 13 | . . . . . . . . . . . . . . 13 . . . . Allies Hacked 1 | . . . . . . . . . . . . . . . . 1 . . Hacks Repelled . | . . . . . . . . . . . . . . . . . . . Allies | -11 -10 -10 -9 -9 -9 -9 -6 -6 -6 -6 -5 -5 -4 -4 -3 -2 -2 -2 -------- Run | Yrd Mat Min Mat Sto Rec Scr Fac Low Low Zio Pro Fac Fac Ext Res Res Qua Frg Total Allies 66 | . 1 3 . 10 . . . . . . . . 1 19 7 12 1 12 Largest Group 11 | . 1 3 3 10 6 5 5 . . . . . 1 8 5 5 1 11 Highest-Rated Group 725 | . 10 40 40 88 56 48 48 . . . . . 26 422 320 320 45 725 Highest-Rated Ally 153 | . 10 16 16 16 16 16 16 . . . . . 26 153 64 64 45 82 Total Orders . | . . . . . . . . . . . . . . . . . . . Ally Attacks 747 | . . . 57 51 12 . 4 . . . . . . 217 62 176 . 168 Total Damage 17396 | . . . 563 476 152 . 47 . . . . . . 6146 2184 4118 . 3710 Kills 110 | . . . 10 8 2 . . . . . . . . 41 12 26 . 11 Allies Corrupted . | . . . . . . . . . . . . . . . . . . . Allies Melted 1 | . . . . . . . . . . . . . . . 1 . . . Intel | -11 -10 -10 -9 -9 -9 -9 -6 -6 -6 -6 -5 -5 -4 -4 -3 -2 -2 -2 ------- Run | Yrd Mat Min Mat Sto Rec Scr Fac Low Low Zio Pro Fac Fac Ext Res Res Qua Frg Active Infowar (turns) 13361 | 14 315 200 832 1300 919 2151 506 415 242 260 198 1355 673 1420 238 559 333 1431 Optics 7184 | . . . . . . . 61 415 242 260 198 1354 673 1420 238 559 333 1431 Sensors 3505 | . . . . . . . 283 415 223 260 198 1296 656 174 . . . . A.S.S. 2 | . . . . . . . . . . . . . . . . . . 2 Terrain 249 | 14 235 . . . . . . . . . . . . . . . . . Seismic 5754 | . 80 200 832 1300 919 2151 272 . . . . . . . . . . . Cloaking 1006 | . . . . . . . . . . . . 31 . . 164 548 220 43 Jamming 390 | . . . . . . . 33 . . . . 187 18 36 . 1 72 43 Robot Analysis Total 9 | . . . . 1 . 5 . . . . . . . . . . 3 . Derelict Logs Recovered 8 | . . 2 . . . . . 2 3 1 . . . . . . . . Drone Launches . | . . . . . . . . . . . . . . . . . . . Drone Recoveries . | . . . . . . . . . . . . . . . . . . . Exploration | -11 -10 -10 -9 -9 -9 -9 -6 -6 -6 -6 -5 -5 -4 -4 -3 -2 -2 -2 ------------- Run | Yrd Mat Min Mat Sto Rec Scr Fac Low Low Zio Pro Fac Fac Ext Res Res Qua Frg Turns Passed 13403 | 41 316 200 832 1300 919 2151 506 415 242 260 198 1369 673 1420 238 559 333 1431 Spaces Moved 18797 | 46 316 203 598 772 643 1718 1020 1242 743 980 666 2153 626 1611 675 1177 891 2717 Core 257 | 44 213 . . . . . . . . . . . . . . . . . Treads 39 | 2 . . 37 . . . . . . . . . . . . . . . Legs 52 | . . . . . . . . . . . . . 5 . . . . 47 Wheels 4708 | . 103 203 561 772 643 1375 . . . . . 316 403 332 . . . . Hover 15 | . . . . . . . . . . . . 15 . . . . . . Flight 13726 | . . . . . . 343 1020 1242 743 980 666 1822 218 1279 675 1177 891 2670 Fastest Speed 15 | 50 50 95 85 100 135 29 25 25 25 25 25 25 29 24 20 22 22 15 Average Speed 52 | 54 64 95 102 130 135 121 35 25 25 25 25 44 84 48 23 25 25 23 Slowest Speed 250 | 160 95 95 160 135 135 135 98 28 28 25 25 245 130 145 34 32 30 250 Overloaded Moves 4 | . . . . . . . . . . . . . . . . . . 4 Propulsion Burnouts . | . . . . . . . . . . . . . . . . . . . Robots Hopped 88 | . . . . . . . 3 1 . . . 36 1 16 6 7 6 12 Potential Cave-ins 13 | . . . . . . . . . . . . . . . . . 8 5 Cave-ins Triggered 1 | . . . . . . . . . . . . 1 . . . . . . Teleports 3 | . . . . . . . . . . . . . . . . . 3 . Exploration Rate (%) 59 | 4 44 55 42 91 98 94 23 88 70 86 71 44 17 94 29 33 90 50 Regions Visited 18 Branch Regions 11 Pre-discovered Areas 6 | . . 1 . . . . . . 1 3 . 1 . . . . . . Known Exits Taken 12 | . . 1 1 . . . 1 1 1 1 1 1 1 1 1 1 . . Unknown Exits Taken 6 | 1 1 . . 1 1 1 . . . . . . . . . . 1 . Scrap Searched 15 | . . 1 . . . 4 . 3 1 3 3 . . . . . . . Spaces Dug 97 | . . . 4 6 . . 7 2 3 . . 31 11 3 8 9 6 7 Terrain Destroyed 508 | . . . 4 16 . . 8 3 15 . 19 176 13 122 8 12 6 106 Melee 22 | . . . 4 6 . . . . . . . . 3 . 8 . 1 . Projectile 206 | . . . . . . . 8 3 3 . . 39 10 20 . 12 5 106 AOE 280 | . . . . 10 . . . . 12 . 19 137 . 102 . . . . Terrain Rammed . | . . . . . . . . . . . . . . . . . . . Walls Destroyed . | . . . . . . . . . . . . . . . . . . . Machines Disabled . | . . . . . . . . . . . . . . . . . . . Actions | -11 -10 -10 -9 -9 -9 -9 -6 -6 -6 -6 -5 -5 -4 -4 -3 -2 -2 -2 --------- Run | Yrd Mat Min Mat Sto Rec Scr Fac Low Low Zio Pro Fac Fac Ext Res Res Qua Frg Total 21263 | 55 378 211 725 972 680 1785 1140 1334 785 994 694 2442 748 2100 711 1389 957 3163 Wait 1235 | . 19 2 28 119 28 42 65 74 27 4 25 198 66 320 4 141 7 66 Move 18619 | 45 315 202 597 771 642 1717 1013 1239 742 979 665 2085 623 1583 662 1164 879 2696 Hop 72 | . . . . . . . 3 1 . . . 31 1 11 6 5 5 9 Pick Up 102 | 4 7 2 15 2 1 4 8 1 . 5 . 8 5 4 5 13 6 12 Fast Attach 157 | 4 2 1 7 3 . . 14 2 . . 1 7 10 16 6 7 13 64 Attach 82 | . 3 1 5 . . 5 6 . 3 1 . 8 8 10 4 11 8 9 Detach 33 | . . . 2 . . 2 . . . 1 . 5 5 8 . 1 2 7 Swap 54 | . 1 . 2 10 1 2 3 . 1 1 . 7 2 11 2 3 3 5 Drop 172 | . 3 3 12 11 1 13 14 3 . 2 1 7 11 10 6 9 13 53 Fire 588 | 2 28 . 39 45 7 . 14 9 12 1 2 85 14 80 . 35 12 203 Melee 106 | . . . 18 9 . . . . . . . 1 3 41 16 . 9 9 Ram . | . . . . . . . . . . . . . . . . . . . Kick . | . . . . . . . . . . . . . . . . . . . Crush . | . . . . . . . . . . . . . . . . . . . Escape Stasis . | . . . . . . . . . . . . . . . . . . . Rewire 8 | . . . . 2 . . . . . . . . . 6 . . . . Trap 5 | . . . . . . . . 5 . . . . . . . . . . Miscellaneous 30 | . . . . . . . . . . . . . . . . . . 30 Route ------- -11/Scrapyard -10/Materials (discovered 2 exits: *Mat / [*Min]) -10/Mines (discovered 2 exits: *Mat x2) -9/Materials (discovered 4 exits: *Mat x2 / Min / *Sto) -9/Storage (discovered 2 exits: *Mat / *Rec) -9/Recycling (discovered 2 exits: [*Fac] / *Scr) -9/Scraptown (discovered 2 exits: *Fac x2) -6/Factory -6/Lower Caves -6/Lower Caves (discovered 2 exits: *Fac / *Zio) -6/Zion -5/Proximity Caves -5/Factory (discovered 4 exits: *Fac x2 / *Upp x2) -4/Factory (discovered 2 exits: *Res / *Ext) -4/Extension (discovered 3 exits: *Res x2 / *Cet) -3/Research (discovered 2 exits: *Res x2) -2/Research (discovered 2 exits: *Qua x2) -2/Quarantine (discovered 3 exits: Acc / [*Sec] / *Frg) -2/Protoforge History --------- Turn | Location | Event 8 | -11/Scrapyard | Discovered new exit (range 15) 42 | -11/Scrapyard | Entered Materials 102 | -10/Materials | Discovered new exit (range 16) 285 | -10/Materials | Discovered new exit (range 11) 329 | -10/Materials | Build established: Mutant 358 | -10/Materials | Entered Mines 359 | -10/Mines | Learned location of Storage (-9) 383 | -10/Mines | A weapon hastily lodged in a ceiling crevice suddenly fell to the ground 415 | -10/Mines | Found a hidden stash of uninstalled traps 435 | -10/Mines | Discovered new exit (range 12) 511 | -10/Mines | Learned 8 Materials zone layouts 524 | -10/Mines | Identified exit to Materials 544 | -10/Mines | Assisted by bots powering up and referring to "LRC-V3" 558 | -10/Mines | Entered Materials 558 | -9/Materials | Accompanied by 3 allies 558 | -9/Materials | Evolved 2 slots: Propulsion x1, Utility x1 559 | -9/Materials | Identified exit to Materials 559 | -9/Materials | Identified exit to Storage 559 | -9/Materials | Identified exit to Mines 1390 | -9/Materials | Entered Storage 1390 | -9/Storage | Accompanied by 2 allies 1663 | -9/Storage | Used back door to open Recycling access 1663 | -9/Storage | Discovered new exit (range 5) 2253 | -9/Storage | Assisted by bots powering up and referring to "LRC-V3" 2337 | -9/Storage | Discovered exit to Materials (range 16) 2548 | -9/Storage | Build established: Commander-Mutant 2690 | -9/Storage | Entered Recycling 2690 | -9/Recycling | Accompanied by 6 allies 2895 | -9/Recycling | Scanned before Scraplab entrance 3350 | -9/Recycling | Discovered new exit (range 8) 3580 | -9/Recycling | Entered Scraplab 3595 | -9/Recycling | Discovered new exit (range 3) 3609 | -9/Recycling | Entered Scraptown 3609 | -9/Scraptown | Accompanied by 5 allies 4035 | -9/Scraptown | Discovered new exit (range 7) 4173 | -9/Scraptown | Visited CPS Storage 4187 | -9/Scraptown | Visited TADAMA 4204 | -9/Scraptown | Visited Artisan Demo Area 4306 | -9/Scraptown | Visited Red Mages 4602 | -9/Scraptown | Visited Cave Peace 4660 | -9/Scraptown | Visited SPCMW 4777 | -9/Scraptown | Visited Shadow of the Wyrm 4831 | -9/Scraptown | Visited UFD Registry 4858 | -9/Scraptown | Registered with UFD as "Nullshell" 4914 | -9/Scraptown | Visited Curators Association 4968 | -9/Scraptown | Visited Botcube Research 5001 | -9/Scraptown | Visited Research Penetration Think Tank 5035 | -9/Scraptown | Visited Junk Cannon Lab 5068 | -9/Scraptown | Visited Observation Area 5123 | -9/Scraptown | Visited Analyses Database 5153 | -9/Scraptown | Visited Chapter 10 5405 | -9/Scraptown | Visited Derelict Rescue Squad 5419 | -9/Scraptown | Found DRS Beacon 5447 | -9/Scraptown | Visited Scrap Suit Storage 5482 | -9/Scraptown | Found Scrap Suit 5504 | -9/Scraptown | Visited Supply Room 5641 | -9/Scraptown | Discovered new exit (range 3) 5682 | -9/Scraptown | Met Optimus 5682 | -9/Scraptown | Accepted into 0bPrime 5760 | -9/Scraptown | Entered Factory 5760 | -6/Factory | Accompanied by 5 allies 5760 | -6/Factory | Evolved 6 slots: Propulsion x2, Utility x4 5967 | -6/Factory | Discovered new exit (range 8) 5993 | -6/Factory | Identified exit to Lower Caves 6266 | -6/Factory | Entered Lower Caves 6286 | -6/Lower Caves | Learned 8 Research zone layouts 6286 | -6/Lower Caves | Learned Factory security intel 6286 | -6/Lower Caves | Learned Armory terminal intel 6512 | -6/Lower Caves | Build established: Hacker-Scout 6571 | -6/Lower Caves | Discovered new exit (range 22) 6575 | -6/Lower Caves | Learned Factory interactive machine intel 6599 | -6/Lower Caves | Identified exit to Lower Caves 6647 | -6/Lower Caves | Learned location of 1 exit from Factory 6681 | -6/Lower Caves | Entered another Lower Caves area 6733 | -6/Lower Caves | Discovered new exit (range 12) 6736 | -6/Lower Caves | Identified exit to Factory 6827 | -6/Lower Caves | Learned Factory terminal intel 6831 | -6/Lower Caves | Learned 4 Factory zone layouts 6849 | -6/Lower Caves | Learned location of Extension (-4) 6882 | -6/Lower Caves | Discovered new exit (range 8) 6886 | -6/Lower Caves | Identified exit to Zion 6923 | -6/Lower Caves | Entered Zion 6942 | -6/Zion | Discovered new exit (range 10) 6945 | -6/Zion | Found Prototype Special Weapon 6946 | -6/Zion | Found Prototype Special Weapon 6947 | -6/Zion | Identified RU-N14's Throwing Claymores (x2) 6950 | -6/Zion | Found RU-N14's Throwing Claymores 7029 | -6/Zion | Received a visual enhancement algorithm 7029 | -6/Zion | Ran a visual enhancement algorithm 7042 | -6/Zion | Learned location of Warlord (-4) 7057 | -6/Zion | Visited the Megawrench Repair Shop 7059 | -6/Zion | Megawrench repaired 7 parts 7071 | -6/Zion | Turned away by Imprinter 7082 | -6/Zion | Found CR-A16's Pointy Stick 7092 | -6/Zion | Learned Factory terminal intel 7096 | -6/Zion | Learned location of Armory (-4) 7106 | -6/Zion | Given the Hacking Drone Bay 7106 | -6/Zion | Found Prototype Device 7183 | -6/Zion | Identified exit to Proximity Caves 7183 | -6/Zion | Entered Proximity Caves 7338 | -5/Proximity Caves | Attracted the attention of an 0b10 checkpoint 7379 | -5/Proximity Caves | Discovered exit to Factory (range 10) 7381 | -5/Proximity Caves | Entered Factory 7381 | -5/Factory | Evolved 2 slots: Propulsion x1, Utility x1 7382 | -5/Factory | Identified exit to Factory 7383 | -5/Factory | Identified exit to Upper Caves 7385 | -5/Factory | Loaded intel: 54 interactive machine locations 7386 | -5/Factory | Loaded intel: 26 terminal locations 7433 | -5/Factory | Discovered exit to Upper Caves (range 3) 7483 | -5/Factory | Found Imp. Powered Armor 7513 | -5/Factory | Loaded intel: 8 recycling unit locations 7541 | -5/Factory | Learned location of Protoforge (-2) 7581 | -5/Factory | Identified Hacking Drone Bay 7745 | -5/Factory | Fabricated Adv. Hacking Suite? 8041 | -5/Factory | Found Powered Armor 8118 | -5/Factory | Crushed by falling debris 8149 | -5/Factory | Lost 4 parts (1p2n1u) 8284 | -5/Factory | Garrison activated, responded to threat 8574 | -5/Factory | Build established: Hacker-Skirmisher 8585 | -5/Factory | Destroyed 14 combat bots 8602 | -5/Factory | System corruption reached 10% 8650 | -5/Factory | Discovered exit to Factory (range 21) 8655 | -5/Factory | Lost 4 parts (1p3n) 8750 | -5/Factory | Entered another Factory area 8750 | -4/Factory | Evolved 2 slots: Power x1, Utility x1 8751 | -4/Factory | Loaded intel: 27 terminal locations 8850 | -4/Factory | Spotted B-86 Titan 9174 | -4/Factory | Build established: Hacker-Mutant 9249 | -4/Factory | Discovered new exit (range 13) 9340 | -4/Factory | Discovered new exit (range 16) 9376 | -4/Factory | Identified exit to Extension 9423 | -4/Factory | Entered Extension 9489 | -4/Extension | Energy Cycler disabled 9490 | -4/Extension | Rescued a captive Derelict 9493 | -4/Extension | Rescued a captive Derelict 9494 | -4/Extension | Rescued a captive Derelict 9495 | -4/Extension | Rescued a captive Derelict 9500 | -4/Extension | Rescued a captive Derelict 9532 | -4/Extension | Rescued A7 9676 | -4/Extension | Build established: Hacker-Ninja 9771 | -4/Extension | Spotted B-86 Titan 9834 | -4/Extension | Spotted B-86 Titan 9835 | -4/Extension | Allies destroyed B-86 Titan 9860 | -4/Extension | Discovered new exit (range 16) 9891 | -4/Extension | Allies destroyed B-86 Titan 9899 | -4/Extension | Lost 5 allies 9913 | -4/Extension | Lost 5 parts (2n2u1w) 9973 | -4/Extension | Disrupted transfer network 10125 | -4/Extension | Local machine network offline 10186 | -4/Extension | Build established: Hacker-Mutant 10523 | -4/Extension | Identified exit to Research 10662 | -4/Extension | Extracted ID and sensor layout for unrecognized location from A7's data core 10714 | -4/Extension | Discovered exit to Research (range 19) 10714 | -4/Extension | Discovered new exit (range 19) 10716 | -4/Extension | Build established: Hacker-Sprinter 10716 | -4/Extension | Lost 4 allies 10720 | -4/Extension | Identified exit to Cetus 10796 | -4/Extension | Lost 3 parts (1p2n) 10843 | -4/Extension | Entered Research 10843 | -3/Research | Accompanied by 2 allies 10843 | -3/Research | Evolved 2 slots: Propulsion x1, Utility x1 10844 | -3/Research | Identified exit to Research 10872 | -3/Research | Spotted B-86 Titan 10874 | -3/Research | Loaded intel: 5 recycling unit locations 10912 | -3/Research | Spotted B-86 Titan 10945 | -3/Research | Scrapoids reinforcements arrived? 10959 | -3/Research | Central database locked down 10973 | -3/Research | Discovered exit to Research (range 10) 11078 | -3/Research | Lost 9 parts (2p5n1u1w) 11081 | -3/Research | Entered another Research area 11081 | -2/Research | Evolved 2 slots: Propulsion x1, Utility x1 11148 | -2/Research | Build established: Wizard-Sprinter 11165 | -2/Research | Scrapoid reinforcements arrived 11238 | -2/Research | Loaded intel: 5 recycling unit locations 11372 | -2/Research | Found Prototype Hackware 11423 | -2/Research | Scrapoid reinforcements arrived 11573 | -2/Research | Identified exit to Quarantine 11598 | -2/Research | Spotted B-90 Cyclops 11622 | -2/Research | Central database locked down 11640 | -2/Research | Entered Quarantine 11649 | -2/Quarantine | Identified Exp. Hacking Suite 11674 | -2/Quarantine | Found Alien Artifact 11675 | -2/Quarantine | Identified Hpw. Transdimensional Reconstructor 11675 | -2/Quarantine | Warped through subspace 11683 | -2/Quarantine | Identified exit to Access 11725 | -2/Quarantine | Found Alien Energy Cannon 11725 | -2/Quarantine | Identified Core Cannon 11760 | -2/Quarantine | Found Alien Slashing Weapon 11760 | -2/Quarantine | Identified Sigix Broadsword 11779 | -2/Quarantine | Found Alien Artifact 11788 | -2/Quarantine | Found Hpw. Transdimensional Reconstructor 11789 | -2/Quarantine | Found Hpw. Transdimensional Reconstructor 11789 | -2/Quarantine | Warped through subspace 11802 | -2/Quarantine | Identified Subatomic Replicator 11803 | -2/Quarantine | Used Subatomic Replicator to replicate Sigix Broadsword 11812 | -2/Quarantine | Lost 4 parts (2n2u) 11817 | -2/Quarantine | Found Alien Reactor 11817 | -2/Quarantine | Identified Matter Drive 11830 | -2/Quarantine | Unchained authorized (6S-H0T) 11846 | -2/Quarantine | Found Prototype Processor 11846 | -2/Quarantine | Identified Exp. Melee Analysis Suite 11851 | -2/Quarantine | Found Exp. Melee Analysis Suite 11853 | -2/Quarantine | Found Exp. Melee Analysis Suite 11879 | -2/Quarantine | Found Alien Artifact 11879 | -2/Quarantine | Identified Terrabomb 11879 | -2/Quarantine | Used Terrabomb 11896 | -2/Quarantine | Met incapacitated Sigix Warrior 11896 | -2/Quarantine | Lockdown squad dispatched 11904 | -2/Quarantine | Spotted Lightning 11905 | -2/Quarantine | Warped through subspace 11944 | -2/Quarantine | Found Prototype Device 11944 | -2/Quarantine | Identified Exp. Transmission Jammer 11950 | -2/Quarantine | Spotted Fortress 11971 | -2/Quarantine | Discovered new exit (range 7) 11971 | -2/Quarantine | Discovered new exit (range 6) 11973 | -2/Quarantine | Entered Protoforge 11980 | -2/Protoforge | Spotted Hotshot 12034 | -2/Protoforge | Superfortress began startup sequence 12038 | -2/Protoforge | Build established: Hacker-Sprinter 12042 | -2/Protoforge | Spotted Overlord 12042 | -2/Protoforge | Spotted AP7-3 12043 | -2/Protoforge | Spotted Hotshot 12045 | -2/Protoforge | Spotted Hotshot 12046 | -2/Protoforge | Spotted Hotshot 12063 | -2/Protoforge | Spotted AP7-3 12074 | -2/Protoforge | Spotted EXE-6 12098 | -2/Protoforge | Spotted EXE-6 12098 | -2/Protoforge | Spotted EXE-6 12105 | -2/Protoforge | Spotted Decapitator 12106 | -2/Protoforge | Lost 5 parts (1n3u1w) 12112 | -2/Protoforge | UFD initiated attack on Protoforge (Readiness: Low) 12112 | -2/Protoforge | Loaded intel: 3 recycling unit locations 12138 | -2/Protoforge | Scrapoids reinforcements arrived? 12139 | -2/Protoforge | Scrapoids reinforcements arrived? 12144 | -2/Protoforge | Destroyed AP7-3 12148 | -2/Protoforge | Optimus greeted in Protoforge 12155 | -2/Protoforge | Spotted Decapitator 12155 | -2/Protoforge | Allies destroyed AP7-3 12165 | -2/Protoforge | Found Prototype Processor 12165 | -2/Protoforge | Identified Exp. Target Analyzer 12167 | -2/Protoforge | Found Prototype Processor 12167 | -2/Protoforge | Identified Exp. Targeting Computer 12168 | -2/Protoforge | Allies destroyed Hotshot 12181 | -2/Protoforge | Found 0bPrime Scrap Suit 12191 | -2/Protoforge | Found UFD Drillbomb 12199 | -2/Protoforge | Found Prototype Processor 12199 | -2/Protoforge | Identified Exp. Core Analyzer 12201 | -2/Protoforge | Found Prototype Processor 12201 | -2/Protoforge | Identified Exp. Armor Integrity Analyzer 12204 | -2/Protoforge | Found Exp. Core Analyzer 12215 | -2/Protoforge | Lost 8 allies 12243 | -2/Protoforge | Met 7R-MNS 12259 | -2/Protoforge | Found Prototype Ballistic Gun 12259 | -2/Protoforge | Identified Cep. XC Strikerail 12277 | -2/Protoforge | Lost 3 allies 12277 | -2/Protoforge | Installed UFD Drillbomb at designated target 12277 | -2/Protoforge | UFD reported confirmed Drillbomb installation 12303 | -2/Protoforge | UFD reported confirmed Drillbomb installation 12327 | -2/Protoforge | Found UFD Drillbomb 12360 | -2/Protoforge | Spotted Striker 12363 | -2/Protoforge | Spotted Striker 12367 | -2/Protoforge | UFD reported confirmed Drillbomb installation 12386 | -2/Protoforge | Spotted Hotshot 12387 | -2/Protoforge | Spotted Hotshot 12426 | -2/Protoforge | Installed UFD Drillbomb at designated target 12426 | -2/Protoforge | UFD reported confirmed Drillbomb installation 12436 | -2/Protoforge | Lost 4 allies 12440 | -2/Protoforge | Spotted Executioner 12440 | -2/Protoforge | Spotted Executioner 12440 | -2/Protoforge | Spotted Executioner 12446 | -2/Protoforge | Spotted Hotshot 12456 | -2/Protoforge | Build established: Scavenger-Sprinter 12474 | -2/Protoforge | Found UFD Drillbomb 12492 | -2/Protoforge | Spotted Executioner 12508 | -2/Protoforge | Destroyed Hotshot 12517 | -2/Protoforge | Destroyed Executioner 12518 | -2/Protoforge | Spotted Striker 12520 | -2/Protoforge | Spotted Striker 12534 | -2/Protoforge | Destroyed Striker 12539 | -2/Protoforge | Spotted Executioner 12566 | -2/Protoforge | Spotted Striker 12579 | -2/Protoforge | Lost 7 allies 12599 | -2/Protoforge | Spotted Executioner 12619 | -2/Protoforge | Spotted Executioner 12624 | -2/Protoforge | Spotted Striker 12642 | -2/Protoforge | P-80 Master assimilated allied S4-FYH(E) 12649 | -2/Protoforge | Found Prototype Device 12649 | -2/Protoforge | Identified Adv. Kinecellerator 12657 | -2/Protoforge | Spotted Striker 12657 | -2/Protoforge | Destroyed Striker 12659 | -2/Protoforge | Spotted Executioner 12670 | -2/Protoforge | Destroyed Executioner 12685 | -2/Protoforge | Lost 3 allies 12710 | -2/Protoforge | Installed UFD Drillbomb at designated target 12710 | -2/Protoforge | UFD reported confirmed Drillbomb installation 12716 | -2/Protoforge | Found UFD Drillbomb 12723 | -2/Protoforge | Spotted Striker 12725 | -2/Protoforge | Spotted Executioner 12734 | -2/Protoforge | Destroyed Striker 12737 | -2/Protoforge | Spotted B-90 Cyclops 12740 | -2/Protoforge | Spotted Hotshot 12740 | -2/Protoforge | Spotted Hotshot 12740 | -2/Protoforge | Spotted Hotshot 12769 | -2/Protoforge | Spotted Executioner 12786 | -2/Protoforge | Spotted Striker 12789 | -2/Protoforge | Spotted Striker 12813 | -2/Protoforge | Destroyed Striker 12816 | -2/Protoforge | Destroyed Striker 12842 | -2/Protoforge | Lost 8 allies 12851 | -2/Protoforge | Destroyed Hotshot 12876 | -2/Protoforge | Forge Plexus network access discovered 12882 | -2/Protoforge | Spotted Striker 12884 | -2/Protoforge | Lost 3 allies 12884 | -2/Protoforge | Spotted Executioner 12890 | -2/Protoforge | Destroyed Striker 12896 | -2/Protoforge | Spotted Decapitator 12897 | -2/Protoforge | Spotted Decapitator 12898 | -2/Protoforge | Spotted Decapitator 12898 | -2/Protoforge | Spotted Decapitator 12899 | -2/Protoforge | Destroyed Executioner 12902 | -2/Protoforge | Destroyed Decapitator 12918 | -2/Protoforge | Found UFD Drillbomb 12934 | -2/Protoforge | Destroyed 12 combat bots 12934 | -2/Protoforge | Spotted Executioner 12944 | -2/Protoforge | Destroyed Executioner 12950 | -2/Protoforge | Spotted Executioner 12959 | -2/Protoforge | Found Adv. Kinecellerator 12963 | -2/Protoforge | Core integrity fell below 50% 12975 | -2/Protoforge | Spotted Hotshot 12993 | -2/Protoforge | Lost 15 allies 13021 | -2/Protoforge | Spotted Executioner 13024 | -2/Protoforge | Spotted Striker 13035 | -2/Protoforge | Spotted Striker 13038 | -2/Protoforge | Spotted Executioner 13084 | -2/Protoforge | System corruption reached 10% 13100 | -2/Protoforge | P-80 Master assimilated allied 02F94-D 13104 | -2/Protoforge | P-80 Master assimilated allied G5-G7R(g) 13121 | -2/Protoforge | Spotted Executioner 13122 | -2/Protoforge | Spotted Hotshot 13122 | -2/Protoforge | Spotted Hotshot 13123 | -2/Protoforge | Spotted Hotshot 13139 | -2/Protoforge | Lost 18 parts (2p8n5u3w) 13139 | -2/Protoforge | Lost 7 allies 13139 | -2/Protoforge | Core integrity fell below 20% 13139 | -2/Protoforge | Destroyed Hotshot 13147 | -2/Protoforge | Found Exp. Core Analyzer 13149 | -2/Protoforge | Found Adv. Kinecellerator 13151 | -2/Protoforge | Found Exp. Targeting Computer 13155 | -2/Protoforge | Found Prototype Device 13155 | -2/Protoforge | Identified Active Sensor Suite 13158 | -2/Protoforge | Spotted Hotshot 13166 | -2/Protoforge | Spotted Hotshot 13170 | -2/Protoforge | Spotted Hotshot 13177 | -2/Protoforge | Destroyed Hotshot 13182 | -2/Protoforge | Destroyed Hotshot 13184 | -2/Protoforge | Spotted Hotshot 13189 | -2/Protoforge | Destroyed Hotshot 13192 | -2/Protoforge | Destroyed Hotshot 13209 | -2/Protoforge | Spotted Executioner 13228 | -2/Protoforge | Spotted Executioner 13229 | -2/Protoforge | Destroyed Executioner 13232 | -2/Protoforge | Spotted Striker 13236 | -2/Protoforge | Destroyed Striker 13239 | -2/Protoforge | Spotted Striker 13243 | -2/Protoforge | Destroyed Striker 13250 | -2/Protoforge | Spotted Executioner 13250 | -2/Protoforge | Spotted Striker 13260 | -2/Protoforge | Destroyed Striker 13291 | -2/Protoforge | Destroyed Executioner 13295 | -2/Protoforge | Spotted Executioner 13309 | -2/Protoforge | Lost 3 parts (3n) 13323 | -2/Protoforge | Destroyed 12 combat bots 13346 | -2/Protoforge | Spotted Executioner 13347 | -2/Protoforge | Spotted Striker 13362 | -2/Protoforge | P-80 Master assimilated allied Lugger 337 13373 | -2/Protoforge | Lost 20 allies 13379 | -2/Protoforge | Destroyed Executioner 13394 | -2/Protoforge | Spotted Executioner 13404 | -2/Protoforge | Destroyed by Executioner with Helical Railgun Last Messages --------------- 13400_ Destroyed Exp. Targeting Computer. 13400_ N-04 Retriever collects Ovr. Coil Gun. 13400_ N-04 Retriever collects Ovr. Medium Treads. 13401_ N-04 Retriever collects 0bPrime Scrap Suit. 13401_ N-04 Retriever collects Mak. Coolant Network. 13401_ Slug penetrates N-04 Retriever. 13402_ N-04 Retriever collects Ovr. Coil Gun. 13402_ Slug penetrates Executioner. 13402_ 6B-AE3(r) destroyed. 13403_ N-04 Retriever collects Imp. Deuterium Engine. 13403_ N-04 Retriever collects Mak. Coolant Network. 13403_ N-04 Retriever collects Scrap Suit. 13404_ S-43 Plague destroyed. 13404_ Bolt penetrates Executioner. 13404_ Penetrated by Slug. Map ----- +----------------------------------------------------+ | "" """##??????????# """" "" """""""" | | "" """##??????????# """" "" """"""""" | | ##??????????# " """""""""" | | "+"#####??????????# "" " """"""""""" | | ###??????????# " """""""""""" | | ##???????????# " "" """"""""""""" | | ####?????????# """"" " """""""""""""" | | #"#/"####?????????# "" "" " """""""""""""" | | ##?????????# "" " "" """""""""""""" | | ##?????????# "" " """"""""""""""" | | ##?????????# "" " """"""""""""""" | | ##?????????# " """"""""""""""" | | "#?????????# "" """"""""""""""" | | ##?????????# """ """"""""""""""" | | ##?????????# " " """"""""""""""" | | & ##?????????# """ """"""""""""""" | | ##"######?????????# " """ m""""""""""""""" | | #" "#####?????????# %" """"""""""""""" | | ##/###???????##???# """""""""""""" | | ##???????# ???# """""""""""""" | | """ ##??#?##?# #### "" % """""""""""""" | | "" # ## #!## ## " """"""""""""" | | " ## ==[!#=!! # % """""""""""" | | "## [!!![===*!# % / """"""""""" | | %!" !=[[![!%|%*!# % """""""""" | | % *!&=![!!=%%*%# %[=| @=%n """"""""" | | % % *%%%%%%%%&%%&%% !n*! %"""""""" | | % %%%%%%%%%%%%%x%% h%%%%% %n E n !""""" | | % gE!%%%%%%%%=%%%E%!%%SS%% % % %%%= n | | [b[!%|!%/%%%& %&%%!&&SS%!n%E&%% %% A % %[ %% | | ! =!=*=!!=*|%%[!!%%%[j%%% = % % % E%% % | | ";!!!!!![[%=! *[=![!* *% % % % % % | | ;; ![=!!|! *%*[!=[=% % [% & %% % ]% | | "" ;; == % !!|=!!%!!=/=[!![ !! %%%% | | """ #; % %%!!%[![!*[=!!!*[ %!= % % | | """ "###;;%;;;!!#[%=!!!! =**%[ % *!!! | | ### ; ; %!#!=*=[=% %!!= % %=%% | | ## %%%; #!!!" "" ! % | | ###"####;;;#%;## ##= & " " | | ### ## "" "" | | ########%### # " %"% ] | | ??? ######## ###### "" "" """ " | | ?? ?##????#" "#???# """ " " " " | | #######???## ##???######## ###################### | | #######???## ##??????????####????????????????????? | | ?????##???## ##??????????????????????????????????? | | ?????##???## ##??????????????????????????????????? | | ?????##???#" "#??????????????????????????????????? | | ?????##???## ##??????????????????????????????????? | | ?????##???## ##??????????????????????????????????? | +----------------------------------------------------+ Best States ------------- Heat Dissipation 93 Coolant Potential 120 Energy Generation 50 Energy Capacity 440 Matter Stores 300 Matter Capacity 300 Sight Range 23 Robot Scan Range 16 Terrain Scan Range 16 Terrain Scan Density 10 Jamming Range 22 Cloak Strength 4 Base Temperature (-) 200 EM Shielding 4 Corruption Containment 12 Armor Coverage 400 Resistance: TH 20 Weapon Cycling 25 Phase Shifting 10 Evasion (%) 80 Targeting Accuracy 24 Melee Accuracy 36 Target Analysis 10 Core Analysis 12 Armor Integrity Analysis 50 Recoil Reduction 2 Kinecelleration 50 Force Boost 30 Salvage Targeting 3 Offensive Hacking 67 Defensive Hacking 26 Authchip Count 1 Item Schematics ----------------- Imp. Reaction Control System | -6/Zion | Archive Variable Charge Gun | -6/Zion | Archive Railgun | -6/Zion | Archive Thermic Laser | -6/Zion | Archive Arm. Medium Treads | -6/Zion | Archive Energy Well | -6/Zion | Archive Imp. Shock Absorption System | -6/Zion | Archive Nuclear Pulse Thruster | -6/Zion | Archive Antigrav System | -6/Zion | Archive Imp. Trap Scanner | -6/Zion | Archive Imp. Antigrav System | -6/Zion | Archive Adv. Hacking Suite | -6/Zion | Archive Coil Gun | -6/Zion | Archive KE Penetrator | -6/Zion | Archive Battle Cannon | -6/Zion | Free Flamer | -6/Zion | Free Beamcaster | -6/Zion | Free Hvy. Riot Gun | -6/Zion | Free Barrage Gun | -6/Zion | Free Enh. Flamer | -6/Zion | Free Ripper | -6/Zion | Free Imp. Powered Armor | -5/Factory | Scanalyzed Exp. Heat Sink | -2/Quarantine | Archive Hvy. Proton Cannon | -2/Quarantine | Archive Imp. Particle Accelerator | -2/Quarantine | Archive Robot Schematics ------------------ S-10 Pest | -9/Storage | Hacked G-50 Soldier | -6/Zion | Archive K-01 Serf | -6/Zion | Archive G-47 Trooper | -6/Zion | Archive G-73 Enforcer | -6/Zion | Archive Fabricated ------------ Adv. Hacking Suite | x1 | -5/Factory Repaired ---------- Nothing Studied --------- Mni. Grenade Launcher | -9/Materials | Hacked Wheel | -9/Materials | Hacked Mic. Nuclear Core | -6/Factory | Hacked Nuclear Pulse Thruster | -6/Factory | Hacked Hvy. Plasma Cannon | -6/Factory | Hacked Phase Cannon | -6/Factory | Hacked Nuclear Pulse Array | -5/Factory | Hacked Impulse Thruster | -4/Factory | Hacked Imp. Ion Engine | -4/Factory | Hacked Com. Wheel | -4/Factory | Hacked Smartbomb Launcher | -4/Factory | Hacked Imp. Antigrav System | -4/Factory | Hacked Field Propulsion Array | -4/Factory | Hacked Mic. Antimatter Reactor | -3/Research | Hacked Impulse Thruster Array | -3/Research | Hacked VTOL Module | -3/Research | Hacked Q-thruster | -3/Research | Hacked Lgt. Quantum Reactor | -2/Research | Hacked Matter Neutralizer | -2/Research | Hacked Alien Tech Used ----------------- High-powered Transdimensional Reconstructor Core Cannon Sigix Broadsword Subatomic Replicator Matter Drive Terrabomb Achievements -------------- A Problem For Future Me Botjacking Civilization 2243 DATA ERROR: Steam Global Achievement% Deductive Reasoning Explosive Keycard False Reunion Fine I'll Do It Myself Ghost 'Em Help And Harvest I Have A Map? I Laugh At Your Crits Inventory(Loot) Item+ Link The Feds Organ Harvest Overwhelming Physics Hates This One Trick Plot Armor Recruitment Drive Resistances Are Futile Sniper Some Acronyms Are Better Than Others Spot Them First Super-what Now? The Better Part Of Valor There's More Where That Came From Thread The Needle Around The Corner Throw Away The Key We Are One You May Approach The Wall Challenges ------------ None Game ------ Seed ConcussiveScrapSabre Manual? 0 Play Time 05:32:17 Cumulative 134.0 hours Start 2026.01.02 @ 11:27:10 End 2026.01.02 @ 17:15:36 Sessions 1 Manual Loads 0 Difficulty Rogue Special Mode None Game No. 110 Rogue 110 Adventurer 0 Explorer 0 Win Type - Total 1 Types 1/0/0/0/0/0/0/0/0/0 Lore% 62 Gallery% 60 Achievement% 37 Wizard Run 0 Options --------- Layout 1 ASCII 0 Keyboard 0 Movement Numpad Keybinds 0 Fullscreen 1 Font 18/SmallcapsGlow Map View 50x40 Zoom Use 0% Tactical HUD 1 Map Filters NONE Filters NONE Steam 1 RUN: ae97a41c-bf3a-47a7-9a8d-aa8716530350